[Event "Early-Titled-Tuesday-Blitz-September-26-2023"]
[Site "Chess.com"]
[Date "2023.09.26"]
[Round "5"]
[White "Mops_2004"]
[Black "subham777"]
[Result "1-0"]
[WhiteElo "2773"]
[BlackElo "2599"]
[TimeControl "180+1"]
[EndTime "8:54:30 PDT"]
[Termination "Mops_2004 won by resignation"]

1. g3 {[%clk 0:03:00.9]} 1... d5 {[%clk 0:02:59.7]} 2. Nf3 {[%clk 0:03:00.6]}
2... Nf6 {[%clk 0:02:59.3]} 3. Bg2 {[%clk 0:03:01.1]} 3... e6 {[%clk 0:02:59.6]}
4. O-O {[%clk 0:03:01.6]} 4... Be7 {[%clk 0:03:00.4]} 5. d3 {[%clk 0:03:01.9]}
5... O-O {[%clk 0:03:00.4]} 6. Bf4 {[%clk 0:03:02.6]} 6... c5 {[%clk 0:03:00.2]}
7. a4 {[%clk 0:03:03.3]} 7... Nc6 {[%clk 0:03:00.3]} 8. e4 {[%clk 0:03:04]} 8...
dxe4 {[%clk 0:02:49.4]} 9. dxe4 {[%clk 0:03:04.9]} 9... Qb6 {[%clk 0:02:48.7]}
10. Nc3 {[%clk 0:02:38.9]} 10... a6 {[%clk 0:02:42]} 11. e5 {[%clk 0:02:15.5]}
11... Nd5 {[%clk 0:02:26.9]} 12. Nxd5 {[%clk 0:02:06.2]} 12... exd5 {[%clk
0:02:26.6]} 13. Qxd5 {[%clk 0:02:04.4]} 13... Qxb2 {[%clk 0:02:26.5]} 14. Qe4
{[%clk 0:01:56.6]} 14... Nb4 {[%clk 0:02:09.2]} 15. Rfb1 {[%clk 0:01:39.5]}
15... f5 {[%clk 0:01:38]} 16. Qc4+ {[%clk 0:01:37.5]} 1-0

[Event "Early-Titled-Tuesday-Blitz-September-26-2023"]
[Site "Chess.com"]
[Date "2023.09.26"]
[Round "5"]
[White "Mihajlovskij"]
[Black "AsaHoffmann"]
[Result "0-1"]
[WhiteElo "2277"]
[BlackElo "2412"]
[TimeControl "180+1"]
[EndTime "8:54:58 PDT"]
[Termination "AsaHoffmann won by resignation"]

1. e4 {[%clk 0:03:00.5]} 1... d6 {[%clk 0:02:51.3]} 2. d4 {[%clk 0:02:58.3]}
2... Nf6 {[%clk 0:02:50.3]} 3. Nc3 {[%clk 0:02:58.5]} 3... c6 {[%clk 0:02:49.9]}
4. Nf3 {[%clk 0:02:56.9]} 4... Bg4 {[%clk 0:02:49.2]} 5. Be3 {[%clk 0:02:56.8]}
5... e6 {[%clk 0:02:48.6]} 6. Qd2 {[%clk 0:02:56.5]} 6... d5 {[%clk 0:02:47.4]}
7. e5 {[%clk 0:02:55.4]} 7... Nfd7 {[%clk 0:02:46.6]} 8. Ng1 {[%clk 0:02:44]}
8... c5 {[%clk 0:02:33.3]} 9. h3 {[%clk 0:02:34.4]} 9... Bf5 {[%clk 0:02:31.3]}
10. g4 {[%clk 0:02:32.9]} 10... Bg6 {[%clk 0:02:30.7]} 11. Nge2 {[%clk
0:02:31.6]} 11... Nc6 {[%clk 0:02:29.8]} 12. f4 {[%clk 0:02:31.1]} 12... cxd4
{[%clk 0:02:21.6]} 13. Nxd4 {[%clk 0:02:31.1]} 13... Bb4 {[%clk 0:02:19.4]} 14.
a3 {[%clk 0:02:28.9]} 14... Qa5 {[%clk 0:02:17.9]} 15. Nb3 {[%clk 0:02:17.3]}
15... Bxc3 {[%clk 0:02:16.7]} 16. Nxa5 {[%clk 0:02:17.4]} 16... Bxd2+ {[%clk
0:02:15.9]} 17. Bxd2 {[%clk 0:02:18.3]} 17... Nxa5 {[%clk 0:02:09.3]} 18. Bxa5
{[%clk 0:02:17.9]} 18... Bxc2 {[%clk 0:02:04.3]} 19. Rc1 {[%clk 0:02:12.1]}
19... Be4 {[%clk 0:02:03.3]} 20. Rh2 {[%clk 0:02:02.1]} 20... f6 {[%clk
0:02:00.5]} 21. exf6 {[%clk 0:01:55.5]} 21... Nxf6 {[%clk 0:01:55.3]} 22. Rc7
{[%clk 0:01:49.5]} 22... O-O {[%clk 0:01:54.4]} 23. Rxb7 {[%clk 0:01:38.5]}
23... Rfc8 {[%clk 0:01:46.9]} 24. Bc3 {[%clk 0:01:31.9]} 24... d4 {[%clk
0:01:42]} 25. Bxd4 {[%clk 0:01:24]} 25... Bxb7 {[%clk 0:01:40.7]} 0-1

[Event "Early-Titled-Tuesday-Blitz-September-26-2023"]
[Site "Chess.com"]
[Date "2023.09.26"]
[Round "5"]
[White "LeoWin2012"]
[Black "Bilan_Danila"]
[Result "0-1"]
[WhiteElo "2329"]
[BlackElo "2521"]
[TimeControl "180+1"]
[EndTime "8:55:01 PDT"]
[Termination "Bilan_Danila won by resignation"]

1. e4 {[%clk 0:03:00.9]} 1... c6 {[%clk 0:02:57.1]} 2. d4 {[%clk 0:02:59.5]}
2... d5 {[%clk 0:02:57.5]} 3. Nc3 {[%clk 0:02:58.1]} 3... b5 {[%clk 0:02:56.6]}
4. exd5 {[%clk 0:02:57]} 4... b4 {[%clk 0:02:56.7]} 5. Ne4 {[%clk 0:02:48.9]}
5... cxd5 {[%clk 0:02:56.6]} 6. Nc5 {[%clk 0:02:47.3]} 6... Nf6 {[%clk
0:02:55.4]} 7. Bb5+ {[%clk 0:02:42.9]} 7... Bd7 {[%clk 0:02:52.9]} 8. Nxd7
{[%clk 0:02:42.5]} 8... Nbxd7 {[%clk 0:02:53.8]} 9. Nf3 {[%clk 0:02:40.1]} 9...
e6 {[%clk 0:02:46.4]} 10. Ne5 {[%clk 0:02:32.1]} 10... Qb6 {[%clk 0:01:52.3]}
11. Bxd7+ {[%clk 0:02:03.3]} 11... Nxd7 {[%clk 0:01:53.2]} 12. Nxd7 {[%clk
0:02:02.9]} 12... Kxd7 {[%clk 0:01:54.1]} 13. O-O {[%clk 0:02:01.8]} 13... Be7
{[%clk 0:01:49.5]} 14. c3 {[%clk 0:01:55.6]} 14... bxc3 {[%clk 0:01:37.8]} 15.
bxc3 {[%clk 0:01:56.5]} 15... Rac8 {[%clk 0:01:35]} 16. Qa4+ {[%clk 0:01:47.1]}
16... Qc6 {[%clk 0:01:33.8]} 17. Qxa7+ {[%clk 0:01:37]} 17... Rc7 {[%clk
0:01:32.6]} 18. Qa5 {[%clk 0:01:29.4]} 18... Ra8 {[%clk 0:01:32.2]} 0-1

[Event "Early-Titled-Tuesday-Blitz-September-26-2023"]
[Site "Chess.com"]
[Date "2023.09.26"]
[Round "5"]
[White "Alexander_Donchenko"]
[Black "LoydBlankenship"]
[Result "0-1"]
[WhiteElo "2801"]
[BlackElo "2661"]
[TimeControl "180+1"]
[EndTime "8:55:02 PDT"]
[Termination "LoydBlankenship won by checkmate"]

1. e4 {[%clk 0:03:00]} 1... e6 {[%clk 0:02:59.1]} 2. d4 {[%clk 0:03:00.1]} 2...
d5 {[%clk 0:02:59.7]} 3. Nd2 {[%clk 0:03:00.5]} 3... Nc6 {[%clk 0:02:59.5]} 4.
Ngf3 {[%clk 0:03:00.5]} 4... Nf6 {[%clk 0:02:59.4]} 5. c3 {[%clk 0:03:00.4]}
5... dxe4 {[%clk 0:02:45.3]} 6. Ng5 {[%clk 0:03:00.4]} 6... e3 {[%clk
0:02:44.6]} 7. fxe3 {[%clk 0:03:00.2]} 7... Bd6 {[%clk 0:02:25.5]} 8. Bd3 {[%clk
0:02:58.1]} 8... h6 {[%clk 0:02:23.8]} 9. Ngf3 {[%clk 0:02:57.4]} 9... e5 {[%clk
0:02:22.5]} 10. O-O {[%clk 0:02:55.3]} 10... O-O {[%clk 0:02:18.9]} 11. Kh1
{[%clk 0:02:51.8]} 11... Bg4 {[%clk 0:02:18.9]} 12. Ne4 {[%clk 0:02:50.5]} 12...
Nxe4 {[%clk 0:02:06.9]} 13. Bxe4 {[%clk 0:02:51.2]} 13... f5 {[%clk 0:02:03.6]}
14. Bxc6 {[%clk 0:02:48.5]} 14... bxc6 {[%clk 0:02:03.8]} 15. Qb3+ {[%clk
0:02:48.5]} 15... Kh8 {[%clk 0:01:59.4]} 16. Nxe5 {[%clk 0:02:46.3]} 16... Bxe5
{[%clk 0:01:59]} 17. dxe5 {[%clk 0:02:47.1]} 17... Qd3 {[%clk 0:01:44.4]} 18.
Rg1 {[%clk 0:02:43.3]} 18... Rad8 {[%clk 0:01:17.8]} 19. Qa4 {[%clk 0:02:33]}
19... Qe4 {[%clk 0:01:02.4]} 20. Qxa7 {[%clk 0:02:17.4]} 20... Bh3 {[%clk
0:00:48.7]} 21. Qc5 {[%clk 0:02:08.7]} 21... Bxg2+ {[%clk 0:00:47.1]} 22. Rxg2
{[%clk 0:02:05.1]} 22... Rd1# {[%clk 0:00:48]} 0-1

[Event "Early-Titled-Tuesday-Blitz-September-26-2023"]
[Site "Chess.com"]
[Date "2023.09.26"]
[Round "5"]
[White "A-Fier"]
[Black "Martial2008"]
[Result "1-0"]
[WhiteElo "2820"]
[BlackElo "2612"]
[TimeControl "180+1"]
[EndTime "8:55:20 PDT"]
[Termination "A-Fier won by checkmate"]

1. d4 {[%clk 0:03:00.9]} 1... Nf6 {[%clk 0:02:58.3]} 2. Bg5 {[%clk 0:03:00.7]}
2... c5 {[%clk 0:02:54.8]} 3. d5 {[%clk 0:03:00.2]} 3... Ne4 {[%clk 0:02:53.5]}
4. Bf4 {[%clk 0:02:57.2]} 4... e6 {[%clk 0:02:52]} 5. f3 {[%clk 0:02:56.2]} 5...
Bd6 {[%clk 0:02:48.4]} 6. Bxd6 {[%clk 0:02:53.1]} 6... Nxd6 {[%clk 0:02:49.3]}
7. e4 {[%clk 0:02:52]} 7... exd5 {[%clk 0:02:47.9]} 8. Qxd5 {[%clk 0:02:51.8]}
8... Qb6 {[%clk 0:02:44.8]} 9. Nd2 {[%clk 0:02:40.6]} 9... O-O {[%clk
0:02:42.5]} 10. O-O-O {[%clk 0:02:40.8]} 10... Ne8 {[%clk 0:02:42.6]} 11. Nc4
{[%clk 0:02:40.7]} 11... Qc7 {[%clk 0:02:41.8]} 12. Ne2 {[%clk 0:02:36.5]} 12...
Nf6 {[%clk 0:02:35.1]} 13. Qd6 {[%clk 0:02:35.9]} 13... Qxd6 {[%clk 0:02:34.8]}
14. Nxd6 {[%clk 0:02:36.2]} 14... b6 {[%clk 0:02:32.1]} 15. Nc3 {[%clk
0:02:36.2]} 15... Nc6 {[%clk 0:02:32.1]} 16. f4 {[%clk 0:02:34.6]} 16... Nd4
{[%clk 0:02:27.1]} 17. e5 {[%clk 0:02:29.8]} 17... Ng4 {[%clk 0:02:27]} 18. Rd2
{[%clk 0:02:27.9]} 18... f6 {[%clk 0:02:25.5]} 19. Bc4+ {[%clk 0:02:28]} 19...
Kh8 {[%clk 0:02:21.1]} 20. Nf7+ {[%clk 0:02:28.3]} 20... Rxf7 {[%clk 0:02:21.6]}
21. Bxf7 {[%clk 0:02:28.9]} 21... fxe5 {[%clk 0:02:22]} 22. fxe5 {[%clk
0:02:29.4]} 22... Nxe5 {[%clk 0:02:22.9]} 23. Bd5 {[%clk 0:02:29]} 23... Rb8
{[%clk 0:02:21.1]} 24. Rf2 {[%clk 0:02:28]} 24... Ba6 {[%clk 0:02:20]} 25. Re1
{[%clk 0:02:25.4]} 25... d6 {[%clk 0:02:20.3]} 26. Ne4 {[%clk 0:02:25.4]} 26...
Ng4 {[%clk 0:02:03.5]} 27. Rf4 {[%clk 0:02:22.3]} 27... Nf6 {[%clk 0:02:03]} 28.
Nxf6 {[%clk 0:02:20.6]} 28... gxf6 {[%clk 0:02:03.9]} 29. Rxf6 {[%clk
0:02:20.7]} 29... Kg7 {[%clk 0:01:51.5]} 30. Rxd6 {[%clk 0:02:19]} 30... Rf8
{[%clk 0:01:40.8]} 31. c3 {[%clk 0:02:19.5]} 31... Ne2+ {[%clk 0:01:39.8]} 32.
Kd2 {[%clk 0:02:19.8]} 32... Nf4 {[%clk 0:01:38.4]} 33. Re7+ {[%clk 0:02:19.1]}
33... Kh8 {[%clk 0:01:34]} 34. Be4 {[%clk 0:02:19.5]} 34... h5 {[%clk
0:01:23.3]} 35. Rh6+ {[%clk 0:02:13.3]} 35... Kg8 {[%clk 0:01:23.3]} 36. Bh7+
{[%clk 0:02:14]} 36... Kh8 {[%clk 0:01:23.3]} 37. Bd3+ {[%clk 0:02:14.7]} 37...
Kg8 {[%clk 0:01:22.6]} 38. Bxa6 {[%clk 0:02:15.4]} 38... Rf7 {[%clk 0:01:22.2]}
39. Bc4 {[%clk 0:02:15.6]} 39... Kg7 {[%clk 0:01:22.6]} 40. Rxf7+ {[%clk
0:02:14.5]} 40... Kxh6 {[%clk 0:01:23.5]} 41. Rxf4 {[%clk 0:02:15.2]} 41... Kg5
{[%clk 0:01:24.4]} 42. g3 {[%clk 0:02:15.8]} 42... h4 {[%clk 0:01:25.3]} 43.
Rxh4 {[%clk 0:02:16.1]} 43... Kf5 {[%clk 0:01:26]} 44. Ke3 {[%clk 0:02:16.3]}
44... Ke5 {[%clk 0:01:26.9]} 45. Rh5+ {[%clk 0:02:16.7]} 45... Kd6 {[%clk
0:01:27.8]} 46. Ke4 {[%clk 0:02:17.1]} 46... Kc7 {[%clk 0:01:28.7]} 47. Kd5
{[%clk 0:02:17.5]} 47... a6 {[%clk 0:01:29.6]} 48. Rh7+ {[%clk 0:02:17.3]} 48...
Kb8 {[%clk 0:01:29.6]} 49. Kc6 {[%clk 0:02:17.6]} 49... b5 {[%clk 0:01:30.5]}
50. Bd5 {[%clk 0:02:17.9]} 50... a5 {[%clk 0:01:31.4]} 51. Be6 {[%clk
0:02:17.2]} 51... Ka8 {[%clk 0:01:28]} 52. Kb6 {[%clk 0:02:17.5]} 52... b4
{[%clk 0:01:28.9]} 53. Rh8# {[%clk 0:02:18.1]} 1-0

[Event "Early-Titled-Tuesday-Blitz-September-26-2023"]
[Site "Chess.com"]
[Date "2023.09.26"]
[Round "5"]
[White "Maxterlopez"]
[Black "Rap_woyska"]
[Result "1-0"]
[WhiteElo "2747"]
[BlackElo "2512"]
[TimeControl "180+1"]
[EndTime "8:55:22 PDT"]
[Termination "Maxterlopez won by resignation"]

1. e4 {[%clk 0:02:59.8]} 1... e6 {[%clk 0:02:59.6]} 2. d4 {[%clk 0:02:58.9]}
2... d5 {[%clk 0:02:59.9]} 3. Nc3 {[%clk 0:02:59.8]} 3... Nf6 {[%clk 0:02:58.5]}
4. Bg5 {[%clk 0:02:59.2]} 4... dxe4 {[%clk 0:02:58.7]} 5. Nxe4 {[%clk
0:02:59.3]} 5... Be7 {[%clk 0:02:59.3]} 6. Bxf6 {[%clk 0:02:59.7]} 6... Bxf6
{[%clk 0:02:59.5]} 7. Nf3 {[%clk 0:03:00.6]} 7... O-O {[%clk 0:02:58.1]} 8. Bc4
{[%clk 0:03:00.7]} 8... Nc6 {[%clk 0:02:52.1]} 9. c3 {[%clk 0:03:00.6]} 9... b6
{[%clk 0:02:21]} 10. Qe2 {[%clk 0:02:59.8]} 10... Bb7 {[%clk 0:02:21]} 11. O-O-O
{[%clk 0:03:00.1]} 11... Re8 {[%clk 0:02:16.8]} 12. h4 {[%clk 0:02:56.9]} 12...
Be7 {[%clk 0:02:03.2]} 13. h5 {[%clk 0:02:56.3]} 13... Bf8 {[%clk 0:01:54.8]}
14. Kb1 {[%clk 0:02:53.9]} 14... a6 {[%clk 0:01:47.3]} 15. g4 {[%clk 0:02:53.4]}
15... b5 {[%clk 0:01:23.3]} 16. Bb3 {[%clk 0:02:45]} 16... Na5 {[%clk
0:01:10.3]} 17. Bc2 {[%clk 0:02:44.9]} 17... Bxe4 {[%clk 0:00:37.2]} 18. Qxe4
{[%clk 0:02:42.7]} 18... g6 {[%clk 0:00:32.9]} 19. hxg6 {[%clk 0:02:42.4]} 19...
hxg6 {[%clk 0:00:28.8]} 20. Ne5 {[%clk 0:02:39.5]} 20... Bg7 {[%clk 0:00:28.3]}
21. Qf4 {[%clk 0:02:37.9]} 21... Qf6 {[%clk 0:00:23]} 22. Qh2 {[%clk 0:02:38]}
22... Nc4 {[%clk 0:00:20.6]} 23. Nd7 {[%clk 0:02:34.4]} 1-0

[Event "Early-Titled-Tuesday-Blitz-September-26-2023"]
[Site "Chess.com"]
[Date "2023.09.26"]
[Round "5"]
[White "Incognito_Knight"]
[Black "HATilay"]
[Result "1-0"]
[WhiteElo "2760"]
[BlackElo "2570"]
[TimeControl "180+1"]
[EndTime "8:55:36 PDT"]
[Termination "Incognito_Knight won by resignation"]

1. b3 {[%clk 0:03:00]} 1... Nf6 {[%clk 0:02:59.6]} 2. Bb2 {[%clk 0:03:00.6]}
2... e6 {[%clk 0:03:00.2]} 3. Nf3 {[%clk 0:02:59.6]} 3... d5 {[%clk 0:03:00.6]}
4. g3 {[%clk 0:02:56]} 4... c5 {[%clk 0:03:00.7]} 5. Bg2 {[%clk 0:02:56.5]} 5...
Be7 {[%clk 0:03:01.3]} 6. O-O {[%clk 0:02:57.3]} 6... O-O {[%clk 0:03:01.9]} 7.
d4 {[%clk 0:02:56.8]} 7... Nc6 {[%clk 0:03:01.9]} 8. c4 {[%clk 0:02:49.9]} 8...
b6 {[%clk 0:02:58.5]} 9. cxd5 {[%clk 0:02:42.2]} 9... Nxd5 {[%clk 0:02:54.6]}
10. dxc5 {[%clk 0:02:39.3]} 10... Bxc5 {[%clk 0:02:53]} 11. Nbd2 {[%clk
0:02:28]} 11... Bb7 {[%clk 0:02:49.6]} 12. Rc1 {[%clk 0:02:20.9]} 12... Rc8
{[%clk 0:02:44.4]} 13. Ne4 {[%clk 0:02:16]} 13... Be7 {[%clk 0:02:43.5]} 14. Nd4
{[%clk 0:02:16.4]} 14... Re8 {[%clk 0:01:44.8]} 15. Nxc6 {[%clk 0:02:03.5]}
15... Bxc6 {[%clk 0:01:29.4]} 16. Qd4 {[%clk 0:02:02.6]} 16... Bf8 {[%clk
0:01:29.3]} 17. Rfd1 {[%clk 0:01:55.3]} 17... e5 {[%clk 0:01:14.4]} 18. Qd3
{[%clk 0:01:34.9]} 18... Bd6 {[%clk 0:00:51.4]} 1-0

[Event "Early-Titled-Tuesday-Blitz-September-26-2023"]
[Site "Chess.com"]
[Date "2023.09.26"]
[Round "5"]
[White "salomez"]
[Black "ChainedDowntohell"]
[Result "0-1"]
[WhiteElo "2304"]
[BlackElo "2473"]
[TimeControl "180+1"]
[EndTime "8:55:36 PDT"]
[Termination "ChainedDowntohell won by resignation"]

1. d4 {[%clk 0:02:55.9]} 1... Nf6 {[%clk 0:02:59.2]} 2. Nf3 {[%clk 0:02:55.2]}
2... d5 {[%clk 0:02:58.3]} 3. e3 {[%clk 0:02:54.2]} 3... g6 {[%clk 0:02:56.1]}
4. Be2 {[%clk 0:02:53.6]} 4... Bg7 {[%clk 0:02:55.8]} 5. b3 {[%clk 0:02:51.4]}
5... c5 {[%clk 0:02:48.6]} 6. Bb2 {[%clk 0:02:50]} 6... cxd4 {[%clk 0:02:46.3]}
7. Nxd4 {[%clk 0:02:49.8]} 7... O-O {[%clk 0:02:44.8]} 8. O-O {[%clk 0:02:49]}
8... e5 {[%clk 0:02:43.8]} 9. Nb5 {[%clk 0:02:37.4]} 9... a6 {[%clk 0:02:34.3]}
10. N5a3 {[%clk 0:02:26.6]} 10... Nc6 {[%clk 0:02:33.5]} 11. c4 {[%clk
0:02:26.3]} 11... d4 {[%clk 0:02:32.7]} 12. Nc2 {[%clk 0:01:59.2]} 12... Ne4
{[%clk 0:02:13.4]} 13. exd4 {[%clk 0:01:53.9]} 13... exd4 {[%clk 0:02:12.3]} 14.
Bd3 {[%clk 0:01:42.4]} 14... Nc5 {[%clk 0:02:02.6]} 15. Ba3 {[%clk 0:01:27.4]}
15... Nxd3 {[%clk 0:01:52.8]} 16. Bxf8 {[%clk 0:01:17.7]} 16... Qxf8 {[%clk
0:01:42.6]} 17. Qxd3 {[%clk 0:01:12.8]} 17... Bf5 {[%clk 0:01:41.4]} 18. Qd2
{[%clk 0:00:54.3]} 18... Bxc2 {[%clk 0:01:29.6]} 19. Qxc2 {[%clk 0:00:53.3]}
19... d3 {[%clk 0:01:28.7]} 0-1

[Event "Early-Titled-Tuesday-Blitz-September-26-2023"]
[Site "Chess.com"]
[Date "2023.09.26"]
[Round "5"]
[White "Manukyan_Artak"]
[Black "campochess"]
[Result "1-0"]
[WhiteElo "2408"]
[BlackElo "2197"]
[TimeControl "180+1"]
[EndTime "8:55:45 PDT"]
[Termination "Manukyan_Artak won by resignation"]

1. e4 {[%clk 0:03:00.9]} 1... c5 {[%clk 0:02:56.3]} 2. Nf3 {[%clk 0:02:58.4]}
2... Nc6 {[%clk 0:02:56.4]} 3. c3 {[%clk 0:02:56]} 3... Nf6 {[%clk 0:02:54.2]}
4. e5 {[%clk 0:02:55.1]} 4... Nd5 {[%clk 0:02:54]} 5. d4 {[%clk 0:02:55.1]} 5...
cxd4 {[%clk 0:02:54.1]} 6. cxd4 {[%clk 0:02:53.8]} 6... d6 {[%clk 0:02:54.2]} 7.
Nc3 {[%clk 0:02:51.3]} 7... Nxc3 {[%clk 0:02:53.3]} 8. bxc3 {[%clk 0:02:49.9]}
8... e6 {[%clk 0:02:53.5]} 9. Bd3 {[%clk 0:02:48.4]} 9... Be7 {[%clk 0:02:51.5]}
10. O-O {[%clk 0:02:46.8]} 10... O-O {[%clk 0:02:45.7]} 11. Qe2 {[%clk
0:02:45.4]} 11... f5 {[%clk 0:02:45.7]} 12. exf6 {[%clk 0:02:39.5]} 12... Bxf6
{[%clk 0:02:44.2]} 13. Bf4 {[%clk 0:02:33.8]} 13... Re8 {[%clk 0:02:38.5]} 14.
Rad1 {[%clk 0:02:25.3]} 14... Qa5 {[%clk 0:02:29.6]} 15. Bxd6 {[%clk 0:02:20.8]}
15... Qxc3 {[%clk 0:02:29.1]} 16. Be5 {[%clk 0:02:02.2]} 16... Qa5 {[%clk
0:02:21.8]} 17. Qe4 {[%clk 0:01:53.7]} 17... Bxe5 {[%clk 0:01:57.2]} 18. Qxh7+
{[%clk 0:01:52.4]} 18... Kf8 {[%clk 0:01:56.6]} 19. Bg6 {[%clk 0:01:34]} 19...
Bf6 {[%clk 0:01:10.7]} 20. Qh8+ {[%clk 0:01:32]} 20... Ke7 {[%clk 0:01:10.8]}
21. Qxe8+ {[%clk 0:01:31.7]} 21... Kd6 {[%clk 0:01:10.8]} 22. Ne5 {[%clk
0:01:27]} 22... Rb8 {[%clk 0:00:53]} 23. Nc4+ {[%clk 0:01:25.1]} 1-0

[Event "Early-Titled-Tuesday-Blitz-September-26-2023"]
[Site "Chess.com"]
[Date "2023.09.26"]
[Round "5"]
[White "Mikasinski"]
[Black "SHIVACalypso"]
[Result "1-0"]
[WhiteElo "2702"]
[BlackElo "2497"]
[TimeControl "180+1"]
[EndTime "8:55:46 PDT"]
[Termination "Mikasinski won by resignation"]

1. e4 {[%clk 0:03:00.9]} 1... e6 {[%clk 0:02:58.3]} 2. d4 {[%clk 0:03:01]} 2...
d5 {[%clk 0:02:58.9]} 3. Nc3 {[%clk 0:03:01.3]} 3... Nf6 {[%clk 0:02:58.6]} 4.
Bg5 {[%clk 0:03:01.1]} 4... Be7 {[%clk 0:02:55.5]} 5. e5 {[%clk 0:03:01.6]} 5...
Nfd7 {[%clk 0:02:55.6]} 6. h4 {[%clk 0:03:01.8]} 6... h6 {[%clk 0:02:51.4]} 7.
Be3 {[%clk 0:03:01.3]} 7... a6 {[%clk 0:02:48.7]} 8. Qg4 {[%clk 0:03:01.3]} 8...
Kf8 {[%clk 0:02:44.7]} 9. Rh3 {[%clk 0:03:00.6]} 9... h5 {[%clk 0:02:42.3]} 10.
Qf4 {[%clk 0:02:59]} 10... f5 {[%clk 0:02:37.8]} 11. Nf3 {[%clk 0:02:41.8]}
11... c5 {[%clk 0:02:35.1]} 12. O-O-O {[%clk 0:02:40.3]} 12... c4 {[%clk
0:02:31.1]} 13. Rg3 {[%clk 0:02:32.5]} 13... Kf7 {[%clk 0:02:22.6]} 14. Nxd5
{[%clk 0:02:22.4]} 14... exd5 {[%clk 0:02:19.2]} 15. Qxf5+ {[%clk 0:02:14.3]}
15... Kg8 {[%clk 0:02:13.5]} 16. Qe6+ {[%clk 0:02:11.6]} 16... Kf8 {[%clk
0:02:12]} 17. Ng5 {[%clk 0:02:02.2]} 17... Bxg5 {[%clk 0:02:06.9]} 18. Bxg5
{[%clk 0:01:59.4]} 18... Nf6 {[%clk 0:02:03.5]} 19. exf6 {[%clk 0:01:46.7]}
19... Bxe6 {[%clk 0:01:55.3]} 20. fxg7+ {[%clk 0:01:47]} 20... Kf7 {[%clk
0:01:55.5]} 21. Bxd8 {[%clk 0:01:43.3]} 21... Rxd8 {[%clk 0:01:55.8]} 22. Re1
{[%clk 0:01:40.6]} 22... Nc6 {[%clk 0:01:41.4]} 23. Be2 {[%clk 0:01:37.6]} 23...
Bg4 {[%clk 0:01:37.8]} 24. Bxg4 {[%clk 0:01:36.3]} 24... hxg4 {[%clk 0:01:38.7]}
25. Rxg4 {[%clk 0:01:36.4]} 25... Rg8 {[%clk 0:01:36.4]} 26. Re3 {[%clk
0:01:34]} 26... Rxg7 {[%clk 0:01:36.3]} 27. Rf3+ {[%clk 0:01:34.2]} 27... Kg8
{[%clk 0:01:36.4]} 28. Rfg3 {[%clk 0:01:31.1]} 28... Rxg4 {[%clk 0:01:36.3]} 29.
Rxg4+ {[%clk 0:01:32]} 29... Kf7 {[%clk 0:01:36.9]} 30. c3 {[%clk 0:01:31.1]}
30... Rg8 {[%clk 0:01:37.4]} 31. Rxg8 {[%clk 0:01:30.7]} 31... Kxg8 {[%clk
0:01:38.3]} 32. Kd2 {[%clk 0:01:31.4]} 32... Kg7 {[%clk 0:01:38.2]} 33. Ke3
{[%clk 0:01:32]} 33... Kf6 {[%clk 0:01:37]} 34. Kf4 {[%clk 0:01:32.6]} 34... Ne7
{[%clk 0:01:37.3]} 35. h5 {[%clk 0:01:32.4]} 35... Nf5 {[%clk 0:01:31.1]} 36. g4
{[%clk 0:01:32.3]} 36... Ng7 {[%clk 0:01:29]} 37. g5+ {[%clk 0:01:32.6]} 37...
Kf7 {[%clk 0:01:27.5]} 38. h6 {[%clk 0:01:31.4]} 38... Nh5+ {[%clk 0:01:25.6]}
39. Kg4 {[%clk 0:01:28.5]} 39... Kg6 {[%clk 0:01:24.8]} 40. f4 {[%clk
0:01:28.2]} 1-0

[Event "Early-Titled-Tuesday-Blitz-September-26-2023"]
[Site "Chess.com"]
[Date "2023.09.26"]
[Round "5"]
[White "brm72"]
[Black "Rutricks"]
[Result "0-1"]
[WhiteElo "2538"]
[BlackElo "2696"]
[TimeControl "180+1"]
[EndTime "8:55:49 PDT"]
[Termination "Rutricks won by resignation"]

1. e4 {[%clk 0:03:00.9]} 1... g6 {[%clk 0:03:00.9]} 2. d4 {[%clk 0:03:00.8]}
2... Bg7 {[%clk 0:03:00.9]} 3. Nf3 {[%clk 0:03:00.9]} 3... c6 {[%clk 0:03:01.8]}
4. Be2 {[%clk 0:02:58.8]} 4... d5 {[%clk 0:03:02.7]} 5. Nc3 {[%clk 0:02:55.8]}
5... dxe4 {[%clk 0:03:03.6]} 6. Nxe4 {[%clk 0:02:56.7]} 6... Nf6 {[%clk
0:03:02.3]} 7. Nxf6+ {[%clk 0:02:55.4]} 7... exf6 {[%clk 0:03:03.2]} 8. O-O
{[%clk 0:02:55.6]} 8... O-O {[%clk 0:03:03]} 9. Re1 {[%clk 0:02:55.9]} 9... a5
{[%clk 0:03:02.1]} 10. Bf4 {[%clk 0:02:53.8]} 10... Na6 {[%clk 0:03:03]} 11. c3
{[%clk 0:02:52.1]} 11... Nc7 {[%clk 0:03:02.5]} 12. Qd2 {[%clk 0:02:52.2]} 12...
Nd5 {[%clk 0:03:02.4]} 13. Bh6 {[%clk 0:02:50.5]} 13... Qd6 {[%clk 0:03:02.8]}
14. Bxg7 {[%clk 0:02:45.3]} 14... Kxg7 {[%clk 0:03:03.7]} 15. Bc4 {[%clk
0:02:42.7]} 15... Be6 {[%clk 0:03:03.2]} 16. h3 {[%clk 0:02:33.6]} 16... Rfe8
{[%clk 0:03:03.4]} 17. a4 {[%clk 0:02:28.6]} 17... Reb8 {[%clk 0:02:40]} 18. Qe2
{[%clk 0:02:08.7]} 18... Nf4 {[%clk 0:02:22.5]} 19. Qf1 {[%clk 0:02:08]} 19...
Bd5 {[%clk 0:02:23.2]} 20. Bxd5 {[%clk 0:02:04.7]} 20... Qxd5 {[%clk 0:02:23.4]}
21. Nd2 {[%clk 0:02:01.4]} 21... b5 {[%clk 0:02:23.2]} 22. axb5 {[%clk
0:01:57.7]} 22... cxb5 {[%clk 0:02:24.1]} 23. g3 {[%clk 0:01:54.7]} 23... Ne6
{[%clk 0:02:20.3]} 24. Qg2 {[%clk 0:01:53]} 24... Qd7 {[%clk 0:02:18.9]} 25. Ne4
{[%clk 0:01:51.7]} 25... b4 {[%clk 0:02:17.7]} 26. Qf3 {[%clk 0:01:46.9]} 26...
f5 {[%clk 0:02:17.6]} 27. Nd2 {[%clk 0:01:42.9]} 27... bxc3 {[%clk 0:02:16.2]}
28. bxc3 {[%clk 0:01:43.8]} 28... a4 {[%clk 0:02:16.9]} 29. Nc4 {[%clk
0:01:43.7]} 29... Qc7 {[%clk 0:02:05.2]} 30. Ne5 {[%clk 0:01:40.2]} 30... Ng5
{[%clk 0:01:27.1]} 31. Qg2 {[%clk 0:01:37.6]} 31... Qxc3 {[%clk 0:01:26.2]} 32.
Nc6 {[%clk 0:01:22.6]} 32... Nf3+ {[%clk 0:01:25.3]} 33. Kh1 {[%clk 0:01:21.1]}
33... Qxc6 {[%clk 0:01:24.5]} 34. Rec1 {[%clk 0:01:16]} 34... Qe4 {[%clk
0:01:23.4]} 0-1